{"text_format":"2","workbook":"xlsx","n_sheets":7,"sheets":["Menu","Vorspeise","Suppe","Hauptgang","Beilage1","Dessert","Einkaufsliste"],"not_rendered":{"charts":0,"images":2,"macros":0,"external_links":0,"defined_names":7,"comments":0,"pivot_tables":0},"unopened":[],"bounds":{"document_bytes":16777216,"sheet_cells":100000,"run_cost":"one","rows_first":2000,"rows_last":500,"rows_between":2000,"halvings":0,"cell_chars":16384,"cell_head_chars":4096},"cells_cut":0,"cells_raw":0,"read":"whole","date_system":"1900"}

{"sheet":"Menu","index":0,"n_rows":19,"n_cols":9,"rows_kept":19,"cut":false,"hidden":false,"merged":[[18,3,18,10]]}
[]
[]
["Datum","2015-04-09",null,"Menu Angaben wie folgt machen:",null,null,null,"Kg",0.25]
[{"$nulls":7},"Lt",1.25]
["Vorspeise ","Soba | Tofu | Sesam",null,"alle weiteren Angaben  weitere ausschreiben",null,null,null,"EL","Esslöffel"]
[{"$nulls":7},"TL","Kaffeelöffel"]
["Suppe","Spargel | Ricotta | Crêpes",{"$nulls":5},"Bund",1]
[{"$nulls":7},"Stk","Stück"]
["Hauptgang","Poulet | Ingwer | Zitrone",{"$nulls":5},"Pä","Päckli"]
["Beilage1","Blaue St. Galler | Rosmarin"]
["Beilage2"]
[]
["Dessert","Époisse | Crème brûlée | Gewürzkruste"]
[]
["Diverses"]
[]
["Menu von Tisch","B"]
[]
["Personenzahl",4]

{"sheet":"Vorspeise","index":1,"n_rows":25,"n_cols":13,"rows_kept":25,"cut":false,"hidden":false,"merged":[[26,0,26,5],[27,0,27,5],[28,0,28,5],[23,0,23,5],[24,0,24,5],[25,0,25,5],[0,8,0,9],[1,11,2,12],[21,0,21,5],[22,0,22,5]]}
[{"$nulls":4},"Chochete vom",{"$f":"SUM(Menu!B3)","v":"2015-04-09"},null,null,"Original Rezept"]
[{"$f":"Menu!B5","v":"Soba | Tofu | Sesam"},null,null,null,"Rezept für",{"$f":"Menu!B19","v":4},null,null,4,"Personen",null,"Menu Angaben wie folgt machen:"]
["Menge","Einheit","Artikel (Gewicht alles ca. Angaben)","Bemerkungen","Einkaufspreis","Betrag",null,null,"Originalrezept","pro Person"]
[{"$f":"ROUND(SUM(J4*$F$2),2)","v":0},null,"Soba-Nudelsalat",null,null,{"$f":"SUM(E4*A4)","v":0},null,null,null,{"$f":"I4/$I$2","v":0},null,"Kg",0.25]
[0.25,"Kg","Soba Nudeln (Buchweizennudeln)",null,null,{"$f":"SUM(E5*A5)","v":0},null,null,0.25,{"$f":"I5/$I$2","v":6.25E-2},null,"Lt",1.25]
[0.15,"Kg","Bohnen extra fein",null,null,0,null,null,0.15,{"$f":"I6/$I$2","v":3.7499999999999999E-2},null,"EL","Esslöffel"]
[0.2,"Kg","Seidentofu","zum Garnieren",null,0,null,null,0.2,{"$f":"I7/$I$2","v":0.05},null,"TL","Kaffeelöffel"]
[2,"EL","Schwarzer Sesam, geröstet",null,null,0,null,null,2,{"$f":"I8/$I$2","v":0.5},null,"Bund",1]
[0,{"$nulls":4},0,null,null,null,{"$f":"I9/$I$2","v":0},null,"Stk","Stück"]
[0,null,"Vinaigrette",null,null,0,null,null,null,0,null,"Pä","Päckli"]
[0.08,"Lt","Balsamicoessig",null,null,0,null,null,7.4999999999999997E-2,1.8749999999999999E-2,null,"alles weitere ausschreiben"]
[{"$f":"ROUND(SUM(J12*$F$2),2)","v":0.03},"Lt","Sojasauce",null,null,0,null,null,2.5000000000000001E-2,6.2500000000000003E-3]
[1,"Stk","grüne Chilli","entkernt und fein gewürfelt",null,0,null,null,1,0.25]
[0.5,"Stk","Knoblauchzehe","fein gehackt",null,0,null,null,0.5,0.125]
[2,"TL","Honig",null,null,0,null,null,2,0.5]
[1,"Stk","Limette","abgeriebene Schale",null,0,null,null,1,0.25]
[1,"TL","Voatsiperifery-Pfeffer","gemörsert",null,0,null,null,1,0.25]
[0.1,"Lt","Olivenöl",null,null,0,null,null,0.1,2.5000000000000001E-2]
[0.05,"Lt","Sesamöl",null,null,0,null,null,0.05,{"$f":"I19/$I$2","v":1.2500000000000001E-2}]
[0,null,"Kresse",null,null,0,null,null,null,0]
["Zubereitung",null,null,"      "]
["Für den Nudelsalat die Buchweizennudeln bissfest kochen und kalt abschrecken."]
["Die Bohnen im Salzwasser blanchieren (ca. 3-4 Minuten) und im Eiswasser abschrecken. Den Tofu in etwa 1/2 cm grosse Würfel schneiden."]
["Für die Vinaigrette alle Zutaten mit dem Schneebesen verrühren."]
["Soba-Nudeln, Bohnen und Tofu in eine Schüssel geben, mit der Vinaigrette marinieren und 10 Minuten ziehen lassen. Abschmecken und in tiefen Tellern anrichten. Mit schwarzem Sesam und Kresse bestreuen."]

{"sheet":"Suppe","index":2,"n_rows":27,"n_cols":13,"rows_kept":27,"cut":false,"hidden":false,"merged":[[0,8,0,9],[1,11,2,12],[23,0,23,5],[24,0,24,5],[28,0,28,5],[29,0,29,5],[30,0,30,5],[25,0,25,5],[26,0,26,5],[27,0,27,5]]}
[{"$nulls":4},"Chochete vom",{"$f":"SUM(Menu!B3)","v":"2015-04-09"},null,null,"Original Rezept"]
[{"$f":"Menu!B7","v":"Spargel | Ricotta | Crêpes"},null,null,null,"Rezept für",{"$f":"Menu!B19","v":4},null,null,4,"Personen",null,"Menu Angaben wie folgt machen:"]
["Menge","Einheit","Artikel (Gewicht alles ca. Angaben)","Bemerkungen","Einkaufspreis","Betrag",null,null,"Originalrezept","pro Person"]
[{"$f":"ROUND(SUM(J4*$F$2),2)","v":0},null,"Suppe",null,null,{"$f":"SUM(E4*A4)","v":0},null,null,null,{"$f":"I4/$I$2","v":0},null,"Kg",0.25]
[3,"Stk","Schalotten","fein geschnitten",null,0,null,null,3,0.75,null,"Lt",1.25]
[0.4,"Kg","Weisser Spargel","geschält und in feine Scheiben geschnitten",null,{"$f":"SUM(E6*A6)","v":0},null,null,0.4,0.1,null,"EL","Esslöffel"]
[0.05,"Kg","Butter",null,null,{"$f":"SUM(E7*A7)","v":0},null,null,0.05,1.2500000000000001E-2,null,"TL","Kaffeelöffel"]
[0.1,"Lt","Weisswein",null,null,{"$f":"SUM(E8*A8)","v":0},null,null,0.1,2.5000000000000001E-2,null,"Bund",1]
[0.5,"Lt","Gemüsefond",null,null,0,null,null,0.5,0.125,null,"Stk","Stück"]
[0.4,"Lt","Reismilch",null,null,0,null,null,0.4,0.1,null,"Pä","Päckli"]
[1,"EL","Jasminblüten","getrocknet, zum Garnieren",null,0,null,null,1,0.25,null,"alles weitere ausschreiben"]
[0,null,"Ricotta-Flan",null,null,0,null,null,null,0]
[0.2,"Lt","Rahm",null,null,0,null,null,0.2,0.05]
[0.09,"Kg","Ricotta",null,null,0,null,null,0.09,2.2499999999999999E-2]
[1,"Prise","Kardamom","gemahlen",null,0,null,null,1,0.25]
[{"$f":"ROUND(SUM(J16*$F$2),2)","v":2},"Stk","Eier",null,null,0,null,null,2,0.5]
[0,null,"Reis-Crêpes",null,null,{"$f":"SUM(E17*A17)","v":0},null,null,null,{"$f":"I17/$I$2","v":0}]
[2,"Stk","Eier",null,null,0,null,null,2,0.5]
[4,"EL","Reismehl",null,null,0,null,null,4,1]
[0.1,"Lt","Kokosmilch",null,null,0,null,null,0.1,2.5000000000000001E-2]
[0.5,"TL","Fischsauce",null,null,0,null,null,0.5,0.125]
[0.5,"TL","Sesamöl",null,null,0,null,null,0.5,0.125]
["Zubereitung",null,null,"      "]
["Für die Suppe Schalotten und Spargel in Butter andünsten. Mit dem Weisswein ablöschen. Gemüsefond und Reismilch dazugeben und 15 Minuten köcheln lassen. Anschliessend mixen und durch ein Sieb streichen.Mit Salz und Pfeffer abschmecken."]
["Für den Ricotta-Flan alle Zutaten glatt rühren und in kleine, gebutterte Formen füllen. Die Förmchen in ein Wasserbad stellen und im Ofen bei 200 Grad Umluft 10 Minuten garen."]
["Für die Reis-Crêpes alle Zutaten gut verrühren. Eine beschichtete Pfanne nicht zu stark erhitzen, wenig Öl beigeben und jeweils nur so viel Teig zugeben, dass der Boden dünn bedeckt ist. Nacheinander die Crêpes ausbacken und danach in dünne Streifen schneiden."]
["Alle Beilagen in den Suppentellern anrichten und mit der Suppe übergiessen. Mit kleinen Jasminblüten und feinen Kräutern garnieren."]

{"sheet":"Hauptgang","index":3,"n_rows":25,"n_cols":13,"rows_kept":25,"cut":false,"hidden":false,"merged":[[0,8,0,9],[1,11,2,12],[21,0,21,5],[22,0,22,5],[27,0,27,5],[28,0,28,5],[29,0,29,5],[23,0,23,5],[24,0,24,5],[25,0,25,5],[26,0,26,5]]}
[{"$nulls":4},"Chochete vom",{"$f":"SUM(Menu!B3)","v":"2015-04-09"},null,null,"Original Rezept"]
[{"$f":"Menu!B9","v":"Poulet | Ingwer | Zitrone"},null,null,null,"Rezept für",{"$f":"Menu!B19","v":4},null,null,4,"Personen",null,"Menu Angaben wie folgt machen:"]
["Menge","Einheit","Artikel (Gewicht alles ca. Angaben)","Bemerkungen","Einkaufspreis","Betrag",null,null,"Originalrezept","pro Person"]
[{"$f":"ROUND(SUM(J4*$F$2),2)","v":1},"Stk","Maispoularde oder Mistchratzerli",null,null,{"$f":"SUM(E4*A4)","v":0},null,null,1,{"$f":"I4/$I$2","v":0.25},null,"Kg",0.25]
[{"$f":"ROUND(SUM(J5*$F$2),2)","v":0},{"$nulls":4},0,null,null,null,0,null,"Lt",1.25]
[{"$f":"ROUND(SUM(J6*$F$2),2)","v":0},null,"Zitronen-Ingwer-Butter",null,null,0,null,null,null,0,null,"EL","Esslöffel"]
[0.08,"Kg","Butter","geschmolzen",null,0,null,null,7.4999999999999997E-2,1.8749999999999999E-2,null,"TL","Kaffeelöffel"]
[1.5,"EL","Ingwer","geschält und gehackt",null,0,null,null,1.5,0.375,null,"Bund",1]
[2,"Stk","Zitronen","Zesten",null,0,null,null,2,0.5,null,"Stk","Stück"]
[{"$f":"ROUND(SUM(J10*$F$2),2)","v":1},"Stk","Zitrone","Saft",null,0,null,null,1,0.25,null,"Pä","Päckli"]
[{"$f":"ROUND(SUM(J11*$F$2),2)","v":1},"TL","Zimtpulver",null,null,0,null,null,1,0.25,null,"alles weitere ausschreiben"]
[0.5,"TL","Kurmumapulver",null,null,0,null,null,0.5,0.125]
[{"$f":"ROUND(SUM(J13*$F$2),2)","v":1},"Msp","Cayennepfeffer",null,null,0,null,null,1,0.25]
[2,"TL","Fleur de Sel",null,null,0,null,null,2,0.5]
[0,{"$nulls":4},0,null,null,null,0]
[1,"Stk","Zitrone","in Scheiben geschnitten",null,0,null,null,1,{"$f":"I16/$I$2","v":0.25}]
[0,{"$nulls":4},0,null,null,null,0]
[0,{"$nulls":4},0,null,null,null,0]
[0,{"$nulls":4},0,null,null,null,0]
[0,{"$nulls":4},{"$f":"SUM(E20*A20)","v":0},null,null,null,0]
["Zubereitung",null,null,"      "]
["Den Ofen auf 165 Grad vorheizen."]
["Für die Zitronen-Ingwer-Butter alle Zutaten vermischen und das Poulet damit einstreichen."]
["Das Huhn im 165 Grad heissen Ofen 10 Minuten mit der Brustseite nach unten garen. Dann auf den Rücken drehen und weitere 35 Minuten garen. Dazwischen immer wieder mit der Butter bestreichen."]
["5 Minuten vor Garende die in Scheiben geschnittene Zitrone auflegen."]

{"sheet":"Beilage1","index":4,"n_rows":22,"n_cols":13,"rows_kept":22,"cut":false,"hidden":false,"merged":[[0,8,0,9],[1,11,2,12],[21,0,21,5],[22,0,22,5],[23,0,23,5],[29,0,29,5],[30,0,30,5],[31,0,31,5],[24,0,24,5],[25,0,25,5],[26,0,26,5],[27,0,27,5],[28,0,28,5]]}
[{"$nulls":4},"Chochete vom",{"$f":"SUM(Menu!B3)","v":"2015-04-09"},null,null,"Original Rezept"]
[{"$f":"Menu!B10","v":"Blaue St. Galler | Rosmarin"},null,null,null,"Rezept für",4,null,null,4,"Personen",null,"Menu Angaben wie folgt machen:"]
["Menge","Einheit","Artikel (Gewicht alles ca. Angaben)","Bemerkungen","Einkaufspreis","Betrag",null,null,"Originalrezept","pro Person"]
[{"$f":"ROUND(SUM(J4*$F$2),2)","v":12},"Stk","Blaue St. Galler Kartoffeln",null,null,{"$f":"SUM(E4*A4)","v":0},null,null,12,{"$f":"I4/$I$2","v":3},null,"Kg",0.25]
[4,"Stk","Rosmarinzweige",null,null,0,null,null,4,1,null,"Lt",1.25]
[0,{"$nulls":4},0,null,null,null,0,null,"EL","Esslöffel"]
[0,{"$nulls":4},0,null,null,null,0,null,"TL","Kaffeelöffel"]
[0,{"$nulls":4},0,null,null,null,0,null,"Bund",1]
[0,{"$nulls":4},0,null,null,null,0,null,"Stk","Stück"]
[0,{"$nulls":4},0,null,null,null,0,null,"Pä","Päckli"]
[0,{"$nulls":4},0,null,null,null,0,null,"alles weitere ausschreiben"]
[0,{"$nulls":4},0,null,null,null,0]
[0,{"$nulls":4},0,null,null,null,0]
[0,{"$nulls":4},0,null,null,null,0]
[0,{"$nulls":4},0,null,null,null,0]
[0,{"$nulls":4},0,null,null,null,0]
[0,{"$nulls":4},0,null,null,null,0]
[0,{"$nulls":4},0,null,null,null,0]
[0,{"$nulls":4},0,null,null,null,0]
[0,{"$nulls":4},0,null,null,null,0]
["Zubereitung",null,null,"      "]
["Die Kartoffeln 15-20 Minuten kochen und danach mit den Rosmarinzweigen braten."]

{"sheet":"Dessert","index":5,"n_rows":24,"n_cols":13,"rows_kept":24,"cut":false,"hidden":false,"merged":[[0,8,0,9],[1,11,2,12],[21,0,21,5],[22,0,22,5],[28,0,28,5],[29,0,29,5],[30,0,30,5],[23,0,23,5],[24,0,24,5],[25,0,25,5],[26,0,26,5],[27,0,27,5]]}
[{"$nulls":4},"Chochete vom",{"$f":"SUM(Menu!B3)","v":"2015-04-09"},null,null,"Original Rezept"]
[{"$f":"Menu!B13","v":"Époisse | Crème brûlée | Gewürzkruste"},null,null,null,"Rezept für",4,null,null,4,"Personen",null,"Menu Angaben wie folgt machen:"]
["Menge","Einheit","Artikel (Gewicht alles ca. Angaben)","Bemerkungen","Einkaufspreis","Betrag",null,null,"Originalrezept","pro Person"]
[{"$f":"ROUND(SUM(J4*$F$2),2)","v":0},null,"Époisse-Crême brûlée",null,null,{"$f":"SUM(E4*A4)","v":0},null,null,null,{"$f":"I4/$I$2","v":0},null,"Kg",0.25]
[{"$f":"ROUND(SUM(J5*$F$2),2)","v":0.19},"Lt","Rahm",null,null,{"$f":"SUM(E5*A5)","v":0},null,null,0.19,4.7500000000000001E-2,null,"Lt",1.25]
[{"$f":"ROUND(SUM(J6*$F$2),2)","v":7.0000000000000007E-2},"Lt","Milch",null,null,0,null,null,7.0000000000000007E-2,1.7500000000000002E-2,null,"EL","Esslöffel"]
[0.25,"Kg","Epoisse-Käse",null,null,0,null,null,0.25,6.25E-2,null,"KL","Kaffeelöffel"]
[4,"Blatt","Gelatine","in Eiswasser eingeweicht",null,0,null,null,4,1,null,"Bund",1]
[1,"Stk","Ei",null,null,0,null,null,1,0.25,null,"Stk","Stück"]
[0.04,"Lt","Weisswein",null,null,0,null,null,0.04,0.01,null,"Pä","Päckli"]
[1,"Prise","Fleur de Sel",null,null,0,null,null,1,0.25,null,"alles weitere ausschreiben"]
[1,"Prise","Muskatblüte (Macis)","gemahlen",null,0,null,null,1,0.25]
[0,{"$nulls":4},0,null,null,null,0]
[0,null,"Gewürzkruste",null,null,0,null,null,null,0]
[0.05,"Kg","brauner Zucker",null,null,0,null,null,0.05,1.2500000000000001E-2]
[0.5,"TL","Kardamom","gemahlen",null,0,null,null,0.5,0.125]
[0.5,"TL","Zimt","gemahlen",null,0,null,null,0.5,0.125]
[0.5,"TL","Sternanis","gemahlen",null,0,null,null,0.5,0.125]
[1,"Stk","Vanilleschote","ausgekratztes Mark",null,0,null,null,1,0.25]
[0.5,"TL","Szechuanpfeffer","gemahlen",null,0,null,null,0.5,0.125]
["Zubereitung",null,null,"      "]
["Rahm und Milch aufkochen und den Käse darin schmelzen. Die ausgedrückte Gelatine darin auflösen und die restlichen Zutaten unterrühren. Nochmals kurz aufkochen und leicht eindicken lassen."]
["Die Crème in kleine Schalen füllen und im Ofen bei 100 Grad 45 Minuten pochieren. Alternativ die Crème im Steamer bei 85 Grad Dampf für 36 Minuten pochieren. Eher etwas länger als zu kurz, die Crème soll fest werden."]
["Für die Gewürzkruste den Zucker mit sämtlichen Gewürzen mischen und auf die Époisse-Crème streuen. Mit Bunsenbrenner goldbraun karamellisieren und sofort servieren."]

{"sheet":"Einkaufsliste","index":6,"n_rows":92,"n_cols":5,"rows_kept":92,"cut":false,"hidden":false,"merged":[]}
["Hobby-Küche Zug",null,"Einkaufsliste",{"$f":"Dessert!F1","v":"2015-04-09"},"ok"]
["Menge","Einheit","Artikel"]
[{"$f":"Vorspeise!A2","v":"Soba | Tofu | Sesam"},null,null,"Bemerkungen"]
[{"$f":"SUM(Vorspeise!A4)","v":0},{"$f":"Vorspeise!B4","v":0},{"$f":"Vorspeise!C4","v":"Soba-Nudelsalat"},{"$f":"Vorspeise!D4","v":0}]
[{"$f":"SUM(Vorspeise!A5)","v":0.25},{"$f":"Vorspeise!B5","v":"Kg"},{"$f":"Vorspeise!C5","v":"Soba Nudeln (Buchweizennudeln)"},{"$f":"Vorspeise!D5","v":0}]
[{"$f":"SUM(Vorspeise!A6)","v":0.15},{"$f":"Vorspeise!B6","v":"Kg"},{"$f":"Vorspeise!C6","v":"Bohnen extra fein"},{"$f":"Vorspeise!D6","v":0}]
[{"$f":"SUM(Vorspeise!A7)","v":0.2},{"$f":"Vorspeise!B7","v":"Kg"},{"$f":"Vorspeise!C7","v":"Seidentofu"},{"$f":"Vorspeise!D7","v":"zum Garnieren"}]
[{"$f":"SUM(Vorspeise!A8)","v":2},{"$f":"Vorspeise!B8","v":"EL"},{"$f":"Vorspeise!C8","v":"Schwarzer Sesam, geröstet"},{"$f":"Vorspeise!D8","v":0}]
[{"$f":"SUM(Vorspeise!A9)","v":0},{"$f":"Vorspeise!B9","v":0},{"$f":"Vorspeise!C9","v":0},{"$f":"Vorspeise!D9","v":0}]
[{"$f":"SUM(Vorspeise!A10)","v":0},{"$f":"Vorspeise!B10","v":0},{"$f":"Vorspeise!C10","v":"Vinaigrette"},{"$f":"Vorspeise!D10","v":0}]
[{"$f":"SUM(Vorspeise!A11)","v":0.08},{"$f":"Vorspeise!B11","v":"Lt"},{"$f":"Vorspeise!C11","v":"Balsamicoessig"},{"$f":"Vorspeise!D11","v":0}]
[{"$f":"SUM(Vorspeise!A12)","v":0.03},{"$f":"Vorspeise!B12","v":"Lt"},{"$f":"Vorspeise!C12","v":"Sojasauce"},{"$f":"Vorspeise!D12","v":0}]
[{"$f":"SUM(Vorspeise!A13)","v":1},{"$f":"Vorspeise!B13","v":"Stk"},{"$f":"Vorspeise!C13","v":"grüne Chilli"},{"$f":"Vorspeise!D13","v":"entkernt und fein gewürfelt"}]
[{"$f":"SUM(Vorspeise!A14)","v":0.5},{"$f":"Vorspeise!B14","v":"Stk"},{"$f":"Vorspeise!C14","v":"Knoblauchzehe"},{"$f":"Vorspeise!D14","v":"fein gehackt"}]
[{"$f":"SUM(Vorspeise!A15)","v":2},{"$f":"Vorspeise!B15","v":"TL"},{"$f":"Vorspeise!C15","v":"Honig"},{"$f":"Vorspeise!D15","v":0}]
[{"$f":"SUM(Vorspeise!A16)","v":1},{"$f":"Vorspeise!B16","v":"Stk"},{"$f":"Vorspeise!C16","v":"Limette"},{"$f":"Vorspeise!D16","v":"abgeriebene Schale"}]
[{"$f":"SUM(Vorspeise!A17)","v":1},{"$f":"Vorspeise!B17","v":"TL"},{"$f":"Vorspeise!C17","v":"Voatsiperifery-Pfeffer"},{"$f":"Vorspeise!D17","v":"gemörsert"}]
[{"$f":"SUM(Vorspeise!A18)","v":0.1},{"$f":"Vorspeise!B18","v":"Lt"},{"$f":"Vorspeise!C18","v":"Olivenöl"},{"$f":"Vorspeise!D18","v":0}]
[{"$f":"SUM(Vorspeise!A19)","v":0.05},{"$f":"Vorspeise!B19","v":"Lt"},{"$f":"Vorspeise!C19","v":"Sesamöl"},{"$f":"Vorspeise!D19","v":0}]
[{"$f":"SUM(Vorspeise!A20)","v":0},{"$f":"Vorspeise!B20","v":0},{"$f":"Vorspeise!C20","v":"Kresse"},{"$f":"Vorspeise!D20","v":0}]
[{"$f":"Suppe!A2","v":"Spargel | Ricotta | Crêpes"},null,null,"Bemerkungen"]
[{"$f":"SUM(Suppe!A4)","v":0},{"$f":"Suppe!B4","v":0},{"$f":"Suppe!C4","v":"Suppe"},{"$f":"Suppe!D4","v":0}]
[{"$f":"SUM(Suppe!A5)","v":3},{"$f":"Suppe!B5","v":"Stk"},{"$f":"Suppe!C5","v":"Schalotten"},{"$f":"Suppe!D5","v":"fein geschnitten"}]
[{"$f":"SUM(Suppe!A6)","v":0.4},{"$f":"Suppe!B6","v":"Kg"},{"$f":"Suppe!C6","v":"Weisser Spargel"},{"$f":"Suppe!D6","v":"geschält und in feine Scheiben geschnitten"}]
[{"$f":"SUM(Suppe!A7)","v":0.05},{"$f":"Suppe!B7","v":"Kg"},{"$f":"Suppe!C7","v":"Butter"},{"$f":"Suppe!D7","v":0}]
[{"$f":"SUM(Suppe!A8)","v":0.1},{"$f":"Suppe!B8","v":"Lt"},{"$f":"Suppe!C8","v":"Weisswein"},{"$f":"Suppe!D8","v":0}]
[{"$f":"SUM(Suppe!A9)","v":0.5},{"$f":"Suppe!B9","v":"Lt"},{"$f":"Suppe!C9","v":"Gemüsefond"},{"$f":"Suppe!D9","v":0}]
[{"$f":"SUM(Suppe!A10)","v":0.4},{"$f":"Suppe!B10","v":"Lt"},{"$f":"Suppe!C10","v":"Reismilch"},{"$f":"Suppe!D10","v":0}]
[{"$f":"SUM(Suppe!A11)","v":1},{"$f":"Suppe!B11","v":"EL"},{"$f":"Suppe!C11","v":"Jasminblüten"},{"$f":"Suppe!D11","v":"getrocknet, zum Garnieren"}]
[{"$f":"SUM(Suppe!A12)","v":0},{"$f":"Suppe!B12","v":0},{"$f":"Suppe!C12","v":"Ricotta-Flan"},{"$f":"Suppe!D12","v":0}]
[{"$f":"SUM(Suppe!A13)","v":0.2},{"$f":"Suppe!B13","v":"Lt"},{"$f":"Suppe!C13","v":"Rahm"},{"$f":"Suppe!D13","v":0}]
[{"$f":"SUM(Suppe!A14)","v":0.09},{"$f":"Suppe!B14","v":"Kg"},{"$f":"Suppe!C14","v":"Ricotta"},{"$f":"Suppe!D14","v":0}]
[{"$f":"SUM(Suppe!A15)","v":1},{"$f":"Suppe!B15","v":"Prise"},{"$f":"Suppe!C15","v":"Kardamom"},{"$f":"Suppe!D15","v":"gemahlen"}]
[{"$f":"SUM(Suppe!A16)","v":2},{"$f":"Suppe!B16","v":"Stk"},{"$f":"Suppe!C16","v":"Eier"},{"$f":"Suppe!D16","v":0}]
[{"$f":"SUM(Suppe!A19)","v":4},{"$f":"Suppe!B19","v":"EL"},{"$f":"Suppe!C19","v":"Reismehl"},{"$f":"Suppe!D19","v":0}]
[{"$f":"SUM(Suppe!A20)","v":0.1},{"$f":"Suppe!B20","v":"Lt"},{"$f":"Suppe!C20","v":"Kokosmilch"},{"$f":"Suppe!D20","v":0}]
[{"$f":"SUM(Suppe!A21)","v":0.5},{"$f":"Suppe!B21","v":"TL"},{"$f":"Suppe!C21","v":"Fischsauce"},{"$f":"Suppe!D21","v":0}]
[{"$f":"SUM(Suppe!A22)","v":0.5},{"$f":"Suppe!B22","v":"TL"},{"$f":"Suppe!C22","v":"Sesamöl"},{"$f":"Suppe!D22","v":0}]
[{"$f":"Hauptgang!A2","v":"Poulet | Ingwer | Zitrone"},null,null,"Bemerkungen"]
[{"$f":"SUM(Hauptgang!A4)","v":1},{"$f":"Hauptgang!B4","v":"Stk"},{"$f":"Hauptgang!C4","v":"Maispoularde oder Mistchratzerli"},{"$f":"Hauptgang!D4","v":0}]
[{"$f":"SUM(Hauptgang!A5)","v":0},{"$f":"Hauptgang!B5","v":0},{"$f":"Hauptgang!C5","v":0},{"$f":"Hauptgang!D5","v":0}]
[{"$f":"SUM(Hauptgang!A6)","v":0},{"$f":"Hauptgang!B6","v":0},{"$f":"Hauptgang!C6","v":"Zitronen-Ingwer-Butter"},{"$f":"Hauptgang!D6","v":0}]
[{"$f":"SUM(Hauptgang!A7)","v":0.08},{"$f":"Hauptgang!B7","v":"Kg"},{"$f":"Hauptgang!C7","v":"Butter"},{"$f":"Hauptgang!D7","v":"geschmolzen"}]
[{"$f":"SUM(Hauptgang!A8)","v":1.5},{"$f":"Hauptgang!B8","v":"EL"},{"$f":"Hauptgang!C8","v":"Ingwer"},{"$f":"Hauptgang!D8","v":"geschält und gehackt"}]
[{"$f":"SUM(Hauptgang!A9)","v":2},{"$f":"Hauptgang!B9","v":"Stk"},{"$f":"Hauptgang!C9","v":"Zitronen"},{"$f":"Hauptgang!D9","v":"Zesten"}]
[{"$f":"SUM(Hauptgang!A10)","v":1},{"$f":"Hauptgang!B10","v":"Stk"},{"$f":"Hauptgang!C10","v":"Zitrone"},{"$f":"Hauptgang!D10","v":"Saft"}]
[{"$f":"SUM(Hauptgang!A11)","v":1},{"$f":"Hauptgang!B11","v":"TL"},{"$f":"Hauptgang!C11","v":"Zimtpulver"},{"$f":"Hauptgang!D11","v":0}]
[{"$f":"SUM(Hauptgang!A12)","v":0.5},{"$f":"Hauptgang!B12","v":"TL"},{"$f":"Hauptgang!C12","v":"Kurmumapulver"},{"$f":"Hauptgang!D12","v":0}]
[{"$f":"SUM(Hauptgang!A13)","v":1},{"$f":"Hauptgang!B13","v":"Msp"},{"$f":"Hauptgang!C13","v":"Cayennepfeffer"},{"$f":"Hauptgang!D13","v":0}]
[{"$f":"SUM(Hauptgang!A14)","v":2},{"$f":"Hauptgang!B14","v":"TL"},{"$f":"Hauptgang!C14","v":"Fleur de Sel"},{"$f":"Hauptgang!D14","v":0}]
[{"$f":"SUM(Hauptgang!A15)","v":0},{"$f":"Hauptgang!B15","v":0},{"$f":"Hauptgang!C15","v":0},{"$f":"Hauptgang!D15","v":0}]
[{"$f":"SUM(Hauptgang!A16)","v":1},{"$f":"Hauptgang!B16","v":"Stk"},{"$f":"Hauptgang!C16","v":"Zitrone"},{"$f":"Hauptgang!D16","v":"in Scheiben geschnitten"}]
[{"$f":"SUM(Hauptgang!A17)","v":0},{"$f":"Hauptgang!B17","v":0},{"$f":"Hauptgang!C17","v":0},{"$f":"Hauptgang!D17","v":0}]
[{"$f":"SUM(Hauptgang!A18)","v":0},{"$f":"Hauptgang!B18","v":0},{"$f":"Hauptgang!C18","v":0},{"$f":"Hauptgang!D18","v":0}]
[{"$f":"SUM(Hauptgang!A19)","v":0},{"$f":"Hauptgang!B19","v":0},{"$f":"Hauptgang!C19","v":0},{"$f":"Hauptgang!D19","v":0}]
[{"$f":"SUM(Hauptgang!A20)","v":0},{"$f":"Hauptgang!B20","v":0},{"$f":"Hauptgang!C20","v":0},{"$f":"Hauptgang!D20","v":0}]
[{"$f":"Beilage1!A2","v":"Blaue St. Galler | Rosmarin"},null,null,"Bemerkungen"]
[{"$f":"Beilage1!A4","v":12},{"$f":"Beilage1!B4","v":"Stk"},{"$f":"Beilage1!C4","v":"Blaue St. Galler Kartoffeln"},{"$f":"Beilage1!D4","v":0}]
[{"$f":"Beilage1!A5","v":4},{"$f":"Beilage1!B5","v":"Stk"},{"$f":"Beilage1!C5","v":"Rosmarinzweige"},{"$f":"Beilage1!D5","v":0}]
[{"$f":"Beilage1!A6","v":0},{"$f":"Beilage1!B6","v":0},{"$f":"Beilage1!C6","v":0},{"$f":"Beilage1!D6","v":0}]
[{"$f":"Beilage1!A7","v":0},{"$f":"Beilage1!B7","v":0},{"$f":"Beilage1!C7","v":0},{"$f":"Beilage1!D7","v":0}]
[{"$f":"Beilage1!A8","v":0},{"$f":"Beilage1!B8","v":0},{"$f":"Beilage1!C8","v":0},{"$f":"Beilage1!D8","v":0}]
[{"$f":"Beilage1!A9","v":0},{"$f":"Beilage1!B9","v":0},{"$f":"Beilage1!C9","v":0},{"$f":"Beilage1!D9","v":0}]
[{"$f":"Beilage1!A10","v":0},{"$f":"Beilage1!B10","v":0},{"$f":"Beilage1!C10","v":0},{"$f":"Beilage1!D10","v":0}]
[{"$f":"Beilage1!A11","v":0},{"$f":"Beilage1!B11","v":0},{"$f":"Beilage1!C11","v":0},{"$f":"Beilage1!D11","v":0}]
[{"$f":"Beilage1!A12","v":0},{"$f":"Beilage1!B12","v":0},{"$f":"Beilage1!C12","v":0},{"$f":"Beilage1!D12","v":0}]
[{"$f":"Beilage1!A13","v":0},{"$f":"Beilage1!B13","v":0},{"$f":"Beilage1!C13","v":0},{"$f":"Beilage1!D13","v":0}]
[{"$f":"Beilage1!A14","v":0},{"$f":"Beilage1!B14","v":0},{"$f":"Beilage1!C14","v":0},{"$f":"Beilage1!D14","v":0}]
[{"$f":"Beilage1!A15","v":0},{"$f":"Beilage1!B15","v":0},{"$f":"Beilage1!C15","v":0},{"$f":"Beilage1!D15","v":0}]
[{"$f":"Beilage1!A16","v":0},{"$f":"Beilage1!B16","v":0},{"$f":"Beilage1!C16","v":0},{"$f":"Beilage1!D16","v":0}]
[{"$f":"Beilage1!A17","v":0},{"$f":"Beilage1!B17","v":0},{"$f":"Beilage1!C17","v":0},{"$f":"Beilage1!D17","v":0}]
[{"$f":"Beilage1!A18","v":0},{"$f":"Beilage1!B18","v":0},{"$f":"Beilage1!C18","v":0},{"$f":"Beilage1!D18","v":0}]
[{"$f":"Beilage1!A19","v":0},{"$f":"Beilage1!B19","v":0},{"$f":"Beilage1!C19","v":0},{"$f":"Beilage1!D19","v":0}]
[{"$f":"Beilage1!A20","v":0},{"$f":"Beilage1!B20","v":0},{"$f":"Beilage1!C20","v":0},{"$f":"Beilage1!D20","v":0}]
[{"$f":"Dessert!A2","v":"Époisse | Crème brûlée | Gewürzkruste"},null,null,"Bemerkungen"]
[{"$f":"SUM(Dessert!A4)","v":0},{"$f":"Dessert!B4","v":0},{"$f":"Dessert!C4","v":"Époisse-Crême brûlée"},{"$f":"Dessert!D4","v":0}]
[{"$f":"SUM(Dessert!A5)","v":0.19},{"$f":"Dessert!B5","v":"Lt"},{"$f":"Dessert!C5","v":"Rahm"},{"$f":"Dessert!D5","v":0}]
[{"$f":"SUM(Dessert!A6)","v":7.0000000000000007E-2},{"$f":"Dessert!B6","v":"Lt"},{"$f":"Dessert!C6","v":"Milch"},{"$f":"Dessert!D6","v":0}]
[{"$f":"SUM(Dessert!A7)","v":0.25},{"$f":"Dessert!B7","v":"Kg"},{"$f":"Dessert!C7","v":"Epoisse-Käse"},{"$f":"Dessert!D7","v":0}]
[{"$f":"SUM(Dessert!A8)","v":4},{"$f":"Dessert!B8","v":"Blatt"},{"$f":"Dessert!C8","v":"Gelatine"},{"$f":"Dessert!D8","v":"in Eiswasser eingeweicht"}]
[{"$f":"SUM(Dessert!A9)","v":1},{"$f":"Dessert!B9","v":"Stk"},{"$f":"Dessert!C9","v":"Ei"},{"$f":"Dessert!D9","v":0}]
[{"$f":"SUM(Dessert!A10)","v":0.04},{"$f":"Dessert!B10","v":"Lt"},{"$f":"Dessert!C10","v":"Weisswein"},{"$f":"Dessert!D10","v":0}]
[{"$f":"SUM(Dessert!A11)","v":1},{"$f":"Dessert!B11","v":"Prise"},{"$f":"Dessert!C11","v":"Fleur de Sel"},{"$f":"Dessert!D11","v":0}]
[{"$f":"SUM(Dessert!A12)","v":1},{"$f":"Dessert!B12","v":"Prise"},{"$f":"Dessert!C12","v":"Muskatblüte (Macis)"},{"$f":"Dessert!D12","v":"gemahlen"}]
[{"$f":"SUM(Dessert!A13)","v":0},{"$f":"Dessert!B13","v":0},{"$f":"Dessert!C13","v":0},{"$f":"Dessert!D13","v":0}]
[{"$f":"SUM(Dessert!A14)","v":0},{"$f":"Dessert!B14","v":0},{"$f":"Dessert!C14","v":"Gewürzkruste"},{"$f":"Dessert!D14","v":0}]
[{"$f":"SUM(Dessert!A15)","v":0.05},{"$f":"Dessert!B15","v":"Kg"},{"$f":"Dessert!C15","v":"brauner Zucker"},{"$f":"Dessert!D15","v":0}]
[{"$f":"SUM(Dessert!A16)","v":0.5},{"$f":"Dessert!B16","v":"TL"},{"$f":"Dessert!C16","v":"Kardamom"},{"$f":"Dessert!D16","v":"gemahlen"}]
[{"$f":"SUM(Dessert!A17)","v":0.5},{"$f":"Dessert!B17","v":"TL"},{"$f":"Dessert!C17","v":"Zimt"},{"$f":"Dessert!D17","v":"gemahlen"}]
[{"$f":"SUM(Dessert!A18)","v":0.5},{"$f":"Dessert!B18","v":"TL"},{"$f":"Dessert!C18","v":"Sternanis"},{"$f":"Dessert!D18","v":"gemahlen"}]
[{"$f":"SUM(Dessert!A19)","v":1},{"$f":"Dessert!B19","v":"Stk"},{"$f":"Dessert!C19","v":"Vanilleschote"},{"$f":"Dessert!D19","v":"ausgekratztes Mark"}]
[{"$f":"SUM(Dessert!A20)","v":0.5},{"$f":"Dessert!B20","v":"TL"},{"$f":"Dessert!C20","v":"Szechuanpfeffer"},{"$f":"Dessert!D20","v":"gemahlen"}]